fUSD/lending_fUSD_20240125
["ID","MTS","AMOUNT","RATE_DAILY","PERIOD"]
[312714226,1706188242811,-500.0,0.00036573,2]
[312714227,1706188242821,-500.0,0.00036573,2]
[312714228,1706188242830,-500.0,0.00036573,2]
[312714229,1706188242839,-500.0,0.00036573,2]
[312714230,1706188242848,-500.0,0.00036573,2]
[312714231,1706188242858,-500.0,0.00036573,2]
[312714234,1706188242867,-500.0,0.00036573,2]
[312714236,1706188242876,-500.0,0.00036573,2]
[312714238,1706188242886,-500.0,0.00036573,2]
[312714242,1706188242896,-500.0,0.00036573,2]
[312714245,1706188242906,-500.0,0.00036573,2]
[312714247,1706188242916,-500.0,0.00036573,2]
[312714249,1706188242925,-500.0,0.00036573,2]
[312714252,1706188242935,-500.0,0.00036573,2]
[312714255,1706188242944,-500.0,0.00036573,2]
[312714257,1706188242954,-500.0,0.00036573,2]
[312714260,1706188242963,-500.0,0.00036573,2]
[312714262,1706188242972,-500.0,0.00036573,2]
[312714265,1706188242982,-500.0,0.00036573,2]
[312714268,1706188242991,-500.0,0.00036573,2]
[312714270,1706188243000,-500.0,0.00036573,2]
[312714273,1706188243009,-500.0,0.00036573,2]
[312714275,1706188243019,-500.0,0.00036573,2]
[312714278,1706188243029,-500.0,0.00036573,2]
[312714281,1706188243043,-500.0,0.00036573,2]
[312714284,1706188243052,-500.0,0.00036573,2]
[312714287,1706188243062,-500.0,0.00036573,2]
[312714290,1706188243071,-500.0,0.00036573,2]
[312714293,1706188243081,-500.0,0.00036573,2]
[312714296,1706188243090,-500.0,0.00036573,2]
[312714298,1706188243100,-500.0,0.00036573,2]
[312714300,1706188243110,-500.0,0.00036573,2]
[312714302,1706188243119,-500.0,0.00036573,2]
[312714305,1706188243128,-500.0,0.00036573,2]
[312714308,1706188243138,-500.0,0.00036573,2]
[312714311,1706188243147,-500.0,0.00036573,2]
[312714314,1706188243156,-500.0,0.00036573,2]
[312714317,1706188243166,-500.0,0.00036573,2]
[312714320,1706188243175,-500.0,0.00036573,2]
[312714323,1706188243184,-500.0,0.00036573,2]
[312714325,1706188243193,-500.0,0.00036573,2]
[312714327,1706188243202,-500.0,0.00036573,2]
[312714329,1706188243212,-500.0,0.00036573,2]
[312714331,1706188243221,-500.0,0.00036573,2]
[312714333,1706188243230,-500.0,0.00036573,2]
[312714335,1706188243240,-500.0,0.00036573,2]
[312714337,1706188243251,-500.0,0.00036573,2]
[312714339,1706188243260,-500.0,0.00036573,2]
[312714341,1706188243271,-500.0,0.00036573,2]
[312714343,1706188243283,-500.0,0.00036573,2]
[312714345,1706188243292,-500.0,0.00036573,2]
[312714347,1706188243300,-500.0,0.00036573,2]
[312714349,1706188243309,-500.0,0.00036573,2]
[312714351,1706188243318,-500.0,0.00036573,2]
[312714353,1706188243327,-500.0,0.00036573,2]
[312714355,1706188243337,-500.0,0.00036573,2]
[312714357,1706188243347,-500.0,0.00036573,2]
[312714359,1706188243358,-500.0,0.00036573,2]
[312714361,1706188243367,-500.0,0.00036573,2]
[312714363,1706188243377,-500.0,0.00036573,2]
[312714364,1706188243387,-500.0,0.00036573,2]
[312714365,1706188243396,-500.0,0.00036573,2]
[312714366,1706188243406,-500.0,0.00036573,2]
[312714367,1706188243416,-3391.12064649,0.00036574,4]
[312714368,1706188243425,-1315.64951,0.0003664,2]
[312714369,1706188243434,-692.63077835,0.00036659,4]
[312714370,1706188243443,-714.89868555,0.0003677,2]
[312714371,1706188243453,-500.0,0.0003677,2]
[312714372,1706188243463,-5000.0,0.0003689,7]
[312714373,1706188243472,-200.0,0.00036902,2]
[312714374,1706188243482,-200.0,0.00036902,2]
[312714375,1706188243491,-1315.64951,0.0003695,2]
[312714376,1706188243500,-150.0,0.00037059,2]
[312714377,1706188243509,-1389.48408159,0.00037111,2]
[312714378,1706188243519,-1315.64951,0.0003727,2]
[312714379,1706188243528,-200.0,0.00037271,2]
[312714380,1706188243540,-222.80459909,0.00037516,4]
[312714382,1706188243550,-1667.59890668,0.00037536,10]
[312714384,1706188243560,-1315.6495,0.0003758,2]
[312714386,1706188243569,-150.0,0.00037635,2]
[312714388,1706188243578,-200.0,0.00037644,2]
[312714389,1706188243588,-295.06,0.0003769,5]
[312714390,1706188243598,-205.38,0.00037694,5]
[312714391,1706188243607,-151.59,0.00037695,5]
[312714393,1706188243616,-159.04,0.000377,3]
[312714395,1706188243625,-153.34,0.000377,3]
[312714397,1706188243634,-432.89,0.000377,3]
[312714398,1706188243642,-432.89,0.000377,3]
[312714399,1706188243651,-432.89,0.000377,3]
[312714400,1706188243661,-432.89,0.000377,3]
[312714401,1706188243670,-432.89,0.000377,3]
[312714402,1706188243679,-432.89,0.000377,3]
[312714403,1706188243688,-432.89,0.000377,3]
[312714404,1706188243698,-432.89,0.000377,3]
[312714405,1706188243716,-432.89,0.000377,3]
[312714406,1706188243727,-432.89,0.000377,3]
[312714407,1706188243737,-432.89,0.000377,3]
[312714408,1706188243747,-432.89,0.000377,3]
[312714409,1706188243758,-432.89,0.000377,3]
[312714410,1706188243767,-432.89,0.000377,3]
[312714411,1706188243777,-432.89,0.000377,3]
[312714412,1706188243790,-432.89,0.000377,3]
[312714413,1706188243800,-432.89,0.000377,3]
[312714414,1706188243810,-432.89,0.000377,3]
[312714415,1706188243820,-432.89,0.000377,3]
[312714416,1706188243830,-432.89,0.000377,3]
[312714417,1706188243839,-344.0,0.000377,2]
[312714418,1706188243849,-1000.0,0.000377,2]
[312714419,1706188243859,-500.0,0.0003777,2]
[312714420,1706188243869,-202.21011162,0.00037793,4]
[312714421,1706188243878,-303.74458375,0.00037793,4]
[312714422,1706188243888,-156.89259705,0.00037793,4]
[312714423,1706188243898,-1122.36571008,0.00037793,2]
[312714424,1706188243908,-694.42463172,0.00037793,2]
[312714425,1706188243918,-199.93742137,0.00037793,4]
[312714426,1706188243928,-299.70010166,0.00037793,4]
[312714427,1706188243939,-156.15504631,0.00037793,4]
[312714428,1706188243949,-584.76109505,0.00037793,4]
[312714429,1706188243959,-417.77933585,0.00037793,4]
[312714430,1706188243968,-167.53295169,0.00037794,4]
[312714431,1706188243978,-155.0,0.00037794,4]
[312714432,1706188243988,-777.68,0.00037794,4]
[312714433,1706188243997,-1823.58,0.00037801,5]
[312714434,1706188244007,-3403.28,0.00037808,2]
[312714435,1706188244017,-723.71,0.00037808,2]
[312714436,1706188244026,-393.7879454,0.00037848,2]
[312714437,1706188244037,-2132.2262638,0.00037848,2]
[312714438,1706188244047,-6913.083167,0.00037848,2]
[312714439,1706188244057,-264.8817909,0.00037848,2]
[312714440,1706188244067,-1128.0523312,0.00037848,2]
[312714441,1706188244077,-168.4527726,0.00037848,2]
[312714442,1706188244088,-1248.41360192,0.00037855,2]
[312714443,1706188244097,-1787.82,0.00037858,5]
[312714444,1706188244107,-500.0,0.0003787,2]
[312714445,1706188244116,-150.0,0.00037873,2]
[312714446,1706188244126,-150.0,0.00037873,2]
[312714447,1706188244135,-776.4482755,0.00037874,2]
[312714448,1706188244145,-4204.2003178,0.00037874,2]
[312714449,1706188244154,-15944.9201512,0.00037874,2]
[312714450,1706188244164,-667.3394219,0.00037874,2]
[312714451,1706188244174,-2841.9990212,0.00037874,2]
[312714452,1706188244184,-422.2399623,0.00037874,2]
[312714453,1706188244194,-947.26706972,0.00037894,4]
[312714454,1706188244203,-386.95936106,0.00037894,4]
[312714455,1706188244212,-232.88475836,0.00037894,4]
[312714456,1706188244222,-340.53916578,0.00037894,4]
[312714457,1706188244231,-312.81536894,0.00037894,4]
[312714458,1706188244241,-9001.34893367,0.00037894,4]
[312714459,1706188244250,-371.82850612,0.00037895,4]
[312714460,1706188244260,-691.2394096,0.00037895,4]
[312714461,1706188244271,-50000.0,0.00037895,4]
[312714462,1706188244280,-507.04390037,0.00037895,4]
[312714463,1706188244291,-1782.28,0.00037896,5]
[312714464,1706188244300,-12091.87441367,0.00037896,4]
[312714465,1706188244309,-305.67942958,0.00037898,4]
[312714466,1706188244319,-446.35904613,0.00037899,4]
[312714467,1706188244328,-173.73,0.000379,7]
[312714468,1706188244338,-151.0,0.000379,7]
[312714469,1706188244348,-151.0,0.000379,7]
[312714470,1706188244358,-151.0,0.000379,7]
[312714471,1706188244368,-151.0,0.000379,7]
[312714472,1706188244378,-151.0,0.000379,7]
[312714473,1706188244388,-200.0,0.000379,2]
[312714474,1706188244398,-151.0,0.000379,7]
[312714475,1706188244408,-163.227202,0.000379,7]
[312714476,1706188244419,-163.227202,0.000379,7]
[312714477,1706188244429,-264.868046,0.000379,7]
[312714478,1706188244438,-600184.776904,0.000379,3]
[312714479,1706188244448,-233.623762,0.000379,7]
[312714480,1706188244457,-233.623762,0.000379,7]
[312714481,1706188244466,-151.0,0.000379,7]
[312714482,1706188244475,-151.0,0.000379,7]
[312714483,1706188244485,-200.0,0.00037918,10]
[312714484,1706188244494,-283.63,0.00038082,2]
[312714485,1706188244503,-150.0,0.00038082,2]
[312714486,1706188244512,-150.0,0.00038082,2]
[312714487,1706188244522,-150.0,0.00038082,2]
[312714488,1706188244531,-150.0,0.00038082,2]
[312714489,1706188244540,-150.0,0.00038082,2]
[312714490,1706188244550,-150.0,0.00038082,2]
[312714491,1706188244561,-150.0,0.00038212,2]
[312714492,1706188244570,-601.68,0.00038219,2]
[312714493,1706188244581,-474.47,0.00038219,2]
[312714494,1706188244592,-402.42,0.00038219,2]
[312714495,1706188244602,-402.42,0.00038219,2]
[312714496,1706188244611,-402.42,0.00038219,2]
[312714497,1706188244621,-162.22386062,0.00038326,2]
[312714498,1706188244631,-150.0,0.00038356,2]
[312714499,1706188244641,-1000.0,0.000384,2]
[312714500,1706188244651,-686.29,0.00038443,2]
[312714501,1706188244661,-429.0,0.00038581,5]
[312714502,1706188244671,-1389.48408159,0.00038689,2]
[312714503,1706188244680,-150.0,0.00038789,2]
[312714504,1706188244690,-7469.51747801,0.0003888,2]
[312714505,1706188244700,-7469.51747795,0.0003888,2]
[312714506,1706188244709,-7469.51747795,0.0003888,2]
[312714507,1706188244721,-7469.51747795,0.0003888,2]
[312714508,1706188244730,-7469.51747795,0.0003888,2]
[312714509,1706188244740,-7469.51747795,0.0003888,2]
[312714510,1706188244749,-171.26,0.00038904,2]
[312714511,1706188244759,-150.0,0.00038904,2]
[312714512,1706188244769,-150.0,0.00038904,2]
[312714513,1706188244778,-193.15,0.00038904,2]
[312714514,1706188244791,-150.0,0.00038904,2]
[312714515,1706188244801,-451.97,0.00038904,2]
[312714516,1706188244810,-150.0,0.00038904,2]
[312714517,1706188244820,-838.07,0.00038904,2]
[312714518,1706188244830,-150.0,0.00038904,2]
[312714519,1706188244839,-837.53,0.00038904,2]
[312714520,1706188244849,-150.0,0.00038904,2]
[312714521,1706188244859,-419.17,0.00038904,2]
[312714522,1706188244868,-419.17,0.00038904,2]
[312714523,1706188244877,-150.0,0.00038904,2]
[312714524,1706188244887,-419.17,0.00038904,2]
[312714525,1706188244897,-150.0,0.00038904,2]
[312714526,1706188244906,-419.17,0.00038904,2]
[312714527,1706188244916,-419.17,0.00038904,2]
[312714528,1706188244925,-419.17,0.00038904,2]
[312714529,1706188244936,-150.0,0.00038904,2]
[312714530,1706188244945,-419.17,0.00038904,2]
[312714531,1706188244955,-389.61,0.00038904,2]
[312714532,1706188244965,-150.0,0.00038904,2]
[312714533,1706188244974,-419.17,0.00038904,2]
[312714534,1706188244984,-419.17,0.00038904,2]
[312714535,1706188244994,-419.17,0.00038904,2]
[312714536,1706188245004,-150.0,0.00038904,2]
[312714537,1706188245013,-419.17,0.00038904,2]
[312714538,1706188245023,-419.17,0.00038904,2]
[312714539,1706188245034,-419.17,0.00038904,2]
[312714540,1706188245049,-419.17,0.00038904,2]
[312714541,1706188245060,-419.17,0.00038904,2]
[312714542,1706188245069,-560.06355904,0.0003897,2]
[312714543,1706188245079,-282.26694691,0.0003898,2]
[312714544,1706188245089,-975.72594921,0.00039,4]
[312714545,1706188245098,-532.5163169,0.00039,4]
[312714546,1706188245108,-197.01513932,0.00039,4]
[312714547,1706188245117,-225.98978178,0.00039,5]
[312714548,1706188245127,-1430.03686544,0.00039,2]
[312714549,1706188245137,-311.21032402,0.00039,2]
[312714550,1706188245146,-150.94609243,0.00039141,2]
[312714551,1706188245155,-583.0,0.0003926,2]
[312714552,1706188245165,-150.0,0.00039307,2]
[312714553,1706188245174,-500.0,0.00039344,7]
[312714554,1706188245184,-500.0,0.00039344,7]
[312714555,1706188245193,-500.0,0.00039344,7]
[312714556,1706188245202,-500.0,0.00039344,7]
[312714557,1706188245211,-500.0,0.00039344,7]
[312714558,1706188245221,-500.0,0.00039344,7]
[312714559,1706188245230,-500.0,0.00039344,7]
[312714560,1706188245240,-500.0,0.00039344,7]
[312714561,1706188245252,-500.0,0.00039344,7]
[312714562,1706188245263,-500.0,0.00039344,7]
[312714563,1706188245273,-500.0,0.00039344,7]
[312714564,1706188245285,-500.0,0.00039344,7]
[312714565,1706188245295,-500.0,0.00039344,7]
[312714566,1706188245304,-500.0,0.00039344,7]
[312714567,1706188245314,-500.0,0.00039344,7]
[312714568,1706188245325,-500.0,0.00039344,7]
[312714569,1706188245336,-500.0,0.00039344,7]
[312714570,1706188245346,-500.0,0.00039344,7]
[312714571,1706188245357,-500.0,0.00039344,7]
[312714572,1706188245367,-500.0,0.00039344,7]
[312714573,1706188245376,-500.0,0.00039344,7]
[312714574,1706188245387,-500.0,0.00039344,7]
[312714575,1706188245398,-500.0,0.00039344,7]
[312714576,1706188245408,-500.0,0.00039344,7]
[312714577,1706188245417,-500.0,0.00039344,7]
[312714578,1706188245427,-500.0,0.00039344,7]
[312714579,1706188245437,-500.0,0.00039344,7]
[312714580,1706188245446,-500.0,0.00039344,7]
[312714581,1706188245455,-500.0,0.00039344,7]
[312714582,1706188245465,-500.0,0.00039344,7]
[312714583,1706188245474,-500.0,0.00039344,7]
[312714584,1706188245484,-500.0,0.00039344,7]
[312714585,1706188245494,-500.0,0.00039344,7]
[312714586,1706188245505,-500.0,0.00039344,7]
[312714587,1706188245515,-500.0,0.00039344,7]
[312714588,1706188245524,-500.0,0.00039344,7]
[312714589,1706188245535,-500.0,0.00039344,7]
[312714590,1706188245544,-500.0,0.00039344,7]
[312714591,1706188245553,-500.0,0.00039344,7]
[312714592,1706188245562,-500.0,0.00039344,7]
[312714593,1706188245571,-500.0,0.00039344,7]
[312714594,1706188245580,-500.0,0.00039344,7]
[312714595,1706188245590,-500.0,0.00039344,7]
[312714596,1706188245600,-500.0,0.00039344,7]
[312714597,1706188245610,-500.0,0.00039344,7]
[312714598,1706188245619,-500.0,0.00039344,7]
[312714599,1706188245629,-500.0,0.00039344,7]
[312714600,1706188245638,-500.0,0.00039344,7]
[312714601,1706188245647,-500.0,0.00039344,7]
[312714602,1706188245657,-500.0,0.00039344,7]
[312714603,1706188245666,-500.0,0.00039344,7]
[312714604,1706188245873,-500.0,0.00039344,7]
[312714605,1706188245883,-500.0,0.00039344,7]
[312714606,1706188245893,-500.0,0.00039344,7]
[312714607,1706188245902,-500.0,0.00039344,7]
[312714608,1706188245911,-500.0,0.00039344,7]
[312714609,1706188245921,-500.0,0.00039344,7]
[312714610,1706188245931,-500.0,0.00039344,7]
[312714611,1706188245940,-500.0,0.00039344,7]
[312714612,1706188245949,-500.0,0.00039344,7]
[312714613,1706188245958,-500.0,0.00039344,7]
[312714614,1706188245967,-500.0,0.00039344,7]
[312714615,1706188245976,-500.0,0.00039344,7]
[312714616,1706188245986,-500.0,0.00039344,7]
[312714617,1706188245995,-409.18,0.00039344,7]
[312714618,1706188246005,-500.0,0.00039344,7]
[312714619,1706188246014,-500.0,0.00039344,7]
[312714620,1706188246023,-150.0,0.00039366,2]
[312714621,1706188246033,-150.0,0.00039366,2]
[312714622,1706188246043,-150.0,0.00039366,2]
[312714623,1706188246053,-150.0,0.00039368,2]
[312714624,1706188246062,-1794.08452034,0.00039371,11]
[312714625,1706188246071,-150.0,0.00039392,2]
[312714626,1706188246080,-150.0,0.00039401,2]
[312714627,1706188246089,-150.0,0.00039406,2]
[312714628,1706188246099,-150.0,0.00039408,2]
[312714629,1706188246108,-150.0,0.00039417,2]
[312714630,1706188246117,-150.0,0.00039428,2]
[312714631,1706188246127,-150.0,0.00039429,2]
[312714632,1706188246136,-1407.88,0.00039436,10]
[312714633,1706188246146,-150.0,0.00039446,2]
[312714634,1706188246155,-150.0,0.0003945,2]
[312714635,1706188246164,-150.0,0.00039463,2]
[312714636,1706188246173,-150.0,0.00039485,2]
[312714637,1706188246182,-150.0,0.00039494,2]
[312714638,1706188246192,-489.8044188,0.000395,4]
[312714639,1706188246201,-161.45820445,0.00039505,2]
[312714640,1706188246210,-150.0,0.00039514,2]
[312714641,1706188246219,-150.0,0.00039539,2]
[312714642,1706188246228,-150.0,0.00039542,2]
[312714643,1706188246237,-150.0,0.00039546,2]
[312714644,1706188246248,-150.0,0.00039577,2]
[312714645,1706188246257,-150.0,0.00039583,2]
[312714646,1706188246268,-150.0,0.00039584,2]
[312714647,1706188246277,-150.0,0.00039619,2]
[312714648,1706188246287,-150.0,0.0003962,2]
[312714649,1706188246297,-1667.59890668,0.00039627,13]
[312714650,1706188246307,-150.0,0.0003963,2]
[312714651,1706188246317,-1500.0,0.00039635,2]
[312714652,1706188246327,-150.0,0.00039642,2]
[312714653,1706188246337,-4555.9457111,0.00039646,2]
[312714654,1706188246347,-676.027152,0.00039646,2]
[312714655,1706188246357,-150.0,0.00039648,2]
[312714656,1706188246367,-150.0,0.00039651,2]
[312714657,1706188246376,-150.0,0.00039655,2]
[312714658,1706188246386,-150.0,0.00039658,2]
[312714659,1706188246396,-150.0,0.00039659,2]
[312714660,1706188246405,-150.0,0.00039659,2]
[312714661,1706188246414,-150.0,0.00039662,2]
[312714662,1706188246424,-150.0,0.00039662,2]
[312714663,1706188246433,-1500.0,0.00039664,2]
[312714664,1706188246442,-1159.1086055,0.00039673,2]
[312714665,1706188246452,-6276.1743718,0.00039673,2]
[312714666,1706188246461,-24976.7571353,0.00039673,2]
[312714667,1706188246470,-1069.7970528,0.00039673,2]
[312714668,1706188246479,-150.0,0.00039676,2]
[312714669,1706188246488,-150.0,0.00039676,2]
[312714670,1706188246497,-150.0,0.00039678,2]
[312714671,1706188246507,-150.0,0.00039695,2]
[312714672,1706188246516,-150.0,0.00039699,2]
[312714673,1706188246526,-1500.0,0.000397,2]
[312714674,1706188246535,-31585.7,0.000397,4]
[312714675,1706188246546,-150.0,0.00039715,2]
[312714676,1706188246555,-150.0,0.00039719,2]
[312714677,1706188246564,-300.0,0.00039721,2]
[312714678,1706188246574,-1500.0,0.00039726,2]
[312714679,1706188246583,-170.26,0.00039726,15]
[312714680,1706188246593,-419.17,0.00039726,2]
[312714681,1706188246602,-836.99,0.00039726,2]
[312714682,1706188246611,-419.17,0.00039726,2]
[312714683,1706188246621,-419.17,0.00039726,2]
[312714684,1706188246630,-419.17,0.00039726,2]
[312714685,1706188246639,-203.01,0.00039726,2]
[312714686,1706188246648,-300.0,0.00039726,2]
[312714687,1706188246657,-150.0,0.00039728,2]
[312714689,1706188246666,-150.0,0.00039732,2]
[312714690,1706188246676,-150.0,0.00039736,2]
[312714692,1706188246685,-150.0,0.00039745,2]
[312714694,1706188246694,-1173.23,0.00039756,10]
[312714696,1706188246703,-150.0,0.00039768,2]
[312714698,1706188246713,-1500.0,0.00039779,2]
[312714700,1706188246722,-150.0,0.00039791,2]
[312714702,1706188246731,-150.0,0.00039795,2]
[312714704,1706188246741,-150.0,0.00039795,2]
[312714706,1706188246750,-150.0,0.00039801,2]
[312714708,1706188246759,-300.0,0.00039803,2]
[312714710,1706188246768,-150.0,0.00039805,2]
[312714712,1706188246777,-300.0,0.00039806,2]
[312714714,1706188246787,-150.0,0.00039808,2]
[312714716,1706188246796,-150.0,0.00039809,2]
[312714718,1706188246806,-150.0,0.00039816,2]
[312714720,1706188246815,-150.0,0.00039826,2]
[312714722,1706188246825,-300.0,0.00039834,2]
[312714724,1706188246834,-150.0,0.00039835,2]
[312714726,1706188246843,-150.0,0.00039836,2]
[312714727,1706188246853,-150.0,0.00039837,2]
[312714729,1706188246863,-977.69,0.00039849,10]
[312714731,1706188246872,-1500.0,0.00039853,2]
[312714733,1706188246882,-1500.0,0.00039859,2]
[312714735,1706188246891,-150.0,0.00039875,2]
[312714737,1706188246902,-150.0,0.00039878,2]
[312714739,1706188246911,-150.0,0.0003988,2]
[312714741,1706188246920,-150.0,0.00039884,2]
[312714743,1706188246929,-150.0,0.00039891,2]
[312714745,1706188246939,-150.0,0.00039892,2]
[312714747,1706188246950,-150.0,0.00039896,2]
[312714749,1706188246959,-350.09036543,0.000399,4]
[312714751,1706188246968,-173.73,0.000399,7]
[312714753,1706188246978,-513.82155025,0.000399,2]
[312714755,1706188246987,-150.0,0.00039907,2]
[312714757,1706188246997,-200.0,0.00039926,15]
[312714759,1706188247006,-300.0,0.00039928,2]
[312714761,1706188247015,-150.0,0.00039935,2]
[312714762,1706188247025,-150.0,0.00039942,2]
[312714764,1706188247034,-150.0,0.00039949,2]
[312714766,1706188247045,-150.0,0.00039958,2]
[312714768,1706188247054,-150.0,0.00039961,2]
[312714770,1706188247063,-1500.0,0.00039962,2]
[312714771,1706188247072,-150.0,0.00039965,2]
[312714773,1706188247081,-150.0,0.00039967,2]
[312714775,1706188247090,-300.0,0.00039967,2]
[312714777,1706188247099,-150.0,0.00039972,2]
[312714779,1706188247109,-150.0,0.00039972,2]
[312714781,1706188247118,-150.0,0.00039973,2]
[312714783,1706188247127,-1924.4292655,0.00039973,2]
[312714784,1706188247137,-1541.7689355,0.00039973,2]
[312714786,1706188247146,-10420.1224797,0.00039973,2]
[312714787,1706188247156,-8348.1484258,0.00039973,2]
[312714789,1706188247165,-43040.4311036,0.00039973,2]
[312714790,1706188247175,-34008.5941195,0.00039973,2]
[312714791,1706188247184,-1874.7123147,0.00039973,2]
[312714792,1706188247193,-1472.2546838,0.00039973,2]
[312714793,1706188247203,-7983.839091,0.00039973,2]
[312714794,1706188247212,-6269.892401,0.00039973,2]
[312714795,1706188247221,-1183.6015313,0.00039973,2]
[312714796,1706188247230,-929.8143416,0.00039973,2]
[312714797,1706188247240,-27335.6946706,0.00039973,2]
[312714798,1706188247252,-21680.0337043,0.00039973,2]
[312714799,1706188247262,-16024.3727379,0.00039973,2]
[312714800,1706188247272,-10368.7117716,0.00039973,2]
[312714801,1706188247282,-4713.0508052,0.00039973,2]
[312714802,1706188247293,-150.0,0.00039981,2]
[312714803,1706188247302,-200.0,0.00039987,2]
[312714804,1706188247312,-200.0,0.00039987,3]
[312714805,1706188247320,-200.0,0.00039987,4]
[312714806,1706188247329,-150.0,0.00039991,2]
[312714807,1706188247339,-2496.82720384,0.00039997,2]
[312714808,1706188247349,-569.5924431,0.0004,4]
[312714809,1706188247359,-1700.13032688,0.0004,4]
[312714810,1706188247369,-11035.48070072,0.0004,4]
[312714811,1706188247378,-155.0,0.0004,2]
[312714812,1706188247388,-54328.02898102,0.0004,4]
[312714813,1706188247397,-1084.09238932,0.0004,4]
[312714814,1706188247406,-288.34670398,0.0004,4]
[312714815,1706188247415,-2678.17508452,0.0004,4]
[312714816,1706188247424,-831.8,0.0004,16]
[312714817,1706188247433,-2000.0,0.0004,16]
[312714818,1706188247442,-2000.0,0.0004,16]
[312714819,1706188247451,-2000.0,0.0004,16]
[312714820,1706188247460,-1008.128677,0.0004,60]
[312714821,1706188247469,-2000.0,0.0004,16]
[312714822,1706188247479,-2000.0,0.0004,16]
[312714823,1706188247489,-6612.3025,0.0004,14]
[312714824,1706188247497,-693244.50853842,0.0004,2]
[312714825,1706188247507,-554.29335016,0.0004,2]
[312714826,1706188247516,-151.0,0.0004,2]
[312714827,1706188247526,-151.0,0.0004,7]
[312714828,1706188247535,-151.0,0.0004,7]
[312714829,1706188247545,-16519.62565821,0.0004,120]
[312714830,1706188247554,-151.0,0.0004,7]
[312714831,1706188247563,-151.0,0.0004,7]
[312714832,1706188247573,-2113.4849441,0.0004,2]
[312714833,1706188247583,-151.0,0.0004,7]
[312714834,1706188247592,-163.227202,0.0004,7]
[312714835,1706188247601,-163.227202,0.0004,7]
[312714836,1706188247611,-5632.59733944,0.0004,4]
[312714837,1706188247620,-233.623762,0.0004,7]
[312714838,1706188247632,-233.623762,0.0004,7]
[312714839,1706188247643,-22341.30494871,0.0004,2]
[312714840,1706188247652,-151.0,0.0004,7]
[312714841,1706188247662,-151.0,0.0004,7]
[312714842,1706188247671,-300.0,0.00040007,2]
[312714843,1706188247680,-300.0,0.00040008,2]
[312714844,1706188247691,-1500.0,0.00040009,2]
[312714845,1706188247702,-150.0,0.00040009,2]
[312714846,1706188247712,-150.0,0.00040017,2]
[312714847,1706188247722,-1500.0,0.00040019,2]
[312714848,1706188247731,-800.0,0.00040021,8]
[312714849,1706188247741,-150.0,0.00040023,2]
[312714850,1706188247751,-150.0,0.00040024,2]
[312714851,1706188247762,-150.0,0.00040032,2]
[312714852,1706188247772,-150.0,0.00040033,2]
[312714853,1706188247781,-150.0,0.00040037,2]
[312714854,1706188247791,-150.0,0.00040037,2]
[312714855,1706188247800,-300.0,0.0004004,2]
[312714856,1706188247809,-150.0,0.00040049,2]
[312714857,1706188247820,-150.0,0.00040049,2]
[312714858,1706188247831,-150.0,0.00040062,2]